fUST/lending_fUST_20250329
["ID","MTS","AMOUNT","RATE_DAILY","PERIOD"]
[356812074,1743237305713,156.587,0.00048693,30]
[356812075,1743237309810,600.0,0.00048693,30]
[356812076,1743237310460,622.2,0.00048693,30]
[356812077,1743237311131,645.2214,0.00048693,30]
[356812078,1743237311822,669.0945918,0.00048693,30]
[356812079,1743237312688,669.0945918,0.00048693,30]
[356812080,1743237350813,151.0,0.00048693,30]
[356812081,1743237351474,151.0,0.00048693,30]
[356812082,1743237352108,151.0,0.00048693,30]
[356812083,1743237352776,151.0,0.00048693,30]
[356812084,1743237353393,151.0,0.00048693,30]
[356812085,1743237354063,151.0,0.00048693,30]
[356812086,1743237354764,151.0,0.00048693,30]
[356812087,1743237355425,151.0,0.00048693,30]
[356812088,1743237356019,151.0,0.00048693,30]
[356812089,1743237356625,151.0,0.00048693,30]
[356812090,1743237357333,151.0,0.00048693,30]
[356812091,1743237358087,151.0,0.00048693,30]
[356812092,1743237358760,151.0,0.00048693,30]
[356812093,1743237359407,151.0,0.00048693,30]
[356812094,1743237360081,151.0,0.00048693,30]
[356812095,1743237360781,151.0,0.00048693,30]
[356812096,1743237361362,151.0,0.00048693,30]
[356812097,1743237362011,151.0,0.00048693,30]
[356812098,1743237363250,151.0,0.00048693,30]
[356812099,1743237364232,151.0,0.00048693,30]
[356812100,1743237411296,100001.0,0.00048693,60]
[356812101,1743237431572,7129.78,0.00025,120]
[356812102,1743237501548,174.833854,0.00013699,2]
[356812103,1743237539734,2554.5513038,0.00048639,120]
[356812104,1743237543419,151.0,0.00048639,30]
[356812105,1743237544075,151.0,0.00048639,30]
[356812106,1743237544710,151.0,0.00048639,30]
[356812107,1743237545390,151.0,0.00048639,30]
[356812108,1743237545997,151.0,0.00048639,30]
[356812109,1743237546633,151.0,0.00048639,30]
[356812110,1743237547361,151.0,0.00048639,30]
[356812111,1743237548005,151.0,0.00048639,30]
[356812112,1743237548646,151.0,0.00048639,30]
[356812113,1743237549303,151.0,0.00048639,30]
[356812114,1743237550015,151.0,0.00048639,30]
[356812115,1743237550629,151.0,0.00048639,30]
[356812116,1743237551441,151.0,0.00048639,30]
[356812117,1743237552467,151.0,0.00048639,30]
[356812118,1743237553118,151.0,0.00048639,30]
[356812119,1743237553824,151.0,0.00048639,30]
[356812120,1743237554496,151.0,0.00048639,30]
[356812121,1743237555330,151.0,0.00048639,30]
[356812122,1743237555784,151.0,0.00048639,30]
[356812123,1743237556424,151.0,0.00048639,30]
[356812124,1743237600097,151.0,0.00048639,30]
[356812125,1743237600794,151.0,0.00048639,30]
[356812126,1743237601474,151.0,0.00048639,30]
[356812127,1743237602212,151.0,0.00048639,30]
[356812128,1743237603247,151.0,0.00048639,30]
[356812129,1743237603611,151.0,0.00048639,30]
[356812130,1743237604447,151.0,0.00048639,30]
[356812131,1743237605107,151.0,0.00048639,30]
[356812132,1743237605885,151.0,0.00048639,30]
[356812133,1743237606570,151.0,0.00048639,30]
[356812134,1743237607161,151.0,0.00048639,30]
[356812135,1743237607848,151.0,0.00048639,30]
[356812136,1743237608765,342.45623367,0.00048639,30]
[356812137,1743237620877,538363.30497158,0.00048639,30]
[356812138,1743237655953,833.34061188,0.00025,120]
[356812139,1743237800011,223.729171,0.00021622,120]
[356812140,1743238029110,-300.0,0.00020997,2]
[356812141,1743238029130,-861.22230054,0.00020998,2]
[356812142,1743238029163,-138.77769946,0.00020998,2]
[356812143,1743238029183,-1000.0,0.00020998,2]
[356812144,1743238029203,-101.22549784,0.00020998,2]
[356812145,1743238042083,-898.77450216,0.00020998,2]
[356812146,1743238042104,-1000.0,0.00020998,2]
[356812147,1743238042124,-1000.0,0.00020998,2]
[356812148,1743238042144,-697.06052069,0.00020998,2]
[356812149,1743238149132,-314.9236411,0.00020532,2]
[356812150,1743238149154,-300.0,0.00020997,2]
[356812151,1743238149174,-302.93947931,0.00020998,2]
[356812152,1743238149194,-1000.0,0.00020998,2]
[356812153,1743238149215,-1000.0,0.00020998,2]
[356812154,1743238149234,-288.80671496,0.00020998,2]
[356812155,1743238149255,-1360.070509,0.00021155,2]
[356812156,1743238149277,-500.0,0.00021316,2]
[356812157,1743238149298,-226.85496866,0.00021316,2]
[356812158,1743238149322,-500.0,0.00021316,2]
[356812159,1743238149343,-500.0,0.00021316,2]
[356812160,1743238149364,-500.0,0.00021316,2]
[356812161,1743238149387,-500.0,0.00021316,2]
[356812162,1743238149410,-500.0,0.00021316,2]
[356812163,1743238149431,-284.90610227,0.00021316,2]
[356812164,1743238149454,-500.0,0.00021316,2]
[356812165,1743238149475,-500.0,0.00021316,2]
[356812166,1743238149513,-500.0,0.00021316,2]
[356812167,1743238149539,-500.0,0.00021316,2]
[356812168,1743238149565,-500.0,0.00021316,2]
[356812169,1743238149592,-500.0,0.00021316,2]
[356812170,1743238149617,-500.0,0.00021316,2]
[356812171,1743238149641,-500.0,0.00021316,2]
[356812172,1743238149668,-500.0,0.00021316,2]
[356812173,1743238149693,-500.0,0.00021316,2]
[356812174,1743238149717,-500.0,0.00021316,2]
[356812175,1743238149741,-500.0,0.00021316,2]
[356812176,1743238149767,-500.0,0.00021316,2]
[356812177,1743238149791,-500.0,0.00021316,2]
[356812178,1743238149816,-500.0,0.00021316,2]
[356812179,1743238149841,-500.0,0.00021316,2]
[356812180,1743238149865,-500.0,0.00021316,2]
[356812181,1743238149890,-500.0,0.00021316,2]
[356812182,1743238149913,-470.34635404,0.00021316,2]
[356812183,1743238149938,-500.0,0.00021316,2]
[356812184,1743238149961,-500.0,0.00021316,2]
[356812185,1743238149984,-500.0,0.00021316,2]
[356812186,1743238150009,-500.0,0.00021316,2]
[356812187,1743238150033,-500.0,0.00021316,2]
[356812188,1743238150058,-500.0,0.00021316,2]
[356812189,1743238150082,-500.0,0.00021316,2]
[356812190,1743238150105,-500.0,0.00021316,2]
[356812191,1743238150132,-500.0,0.00021316,2]
[356812192,1743238150156,-500.0,0.00021316,2]
[356812193,1743238150181,-500.0,0.00021316,2]
[356812194,1743238150204,-500.0,0.00021316,2]
[356812195,1743238150229,-500.0,0.00021316,2]
[356812196,1743238150252,-500.0,0.00021316,2]
[356812197,1743238150276,-500.0,0.00021316,2]
[356812198,1743238150300,-500.0,0.00021316,2]
[356812199,1743238150323,-500.0,0.00021316,2]
[356812200,1743238150347,-500.0,0.00021316,2]
[356812201,1743238150377,-500.0,0.00021316,2]
[356812202,1743238150401,-500.0,0.00021316,2]
[356812203,1743238150424,-500.0,0.00021316,2]
[356812204,1743238150447,-500.0,0.00021316,2]
[356812205,1743238150471,-500.0,0.00021316,2]
[356812206,1743238150495,-500.0,0.00021316,2]
[356812207,1743238150518,-500.0,0.00021316,2]
[356812208,1743238150542,-500.0,0.00021316,2]
[356812209,1743238150566,-500.0,0.00021316,2]
[356812210,1743238150589,-500.0,0.00021316,2]
[356812211,1743238150614,-500.0,0.00021316,2]
[356812212,1743238150638,-500.0,0.00021316,2]
[356812213,1743238150664,-500.0,0.00021316,2]
[356812214,1743238150688,-500.0,0.00021316,2]
[356812215,1743238150713,-500.0,0.00021316,2]
[356812216,1743238150736,-500.0,0.00021316,2]
[356812217,1743238150760,-500.0,0.00021316,2]
[356812218,1743238150784,-500.0,0.00021316,2]
[356812219,1743238150807,-500.0,0.00021316,2]
[356812220,1743238150831,-500.0,0.00021316,2]
[356812221,1743238150855,-500.0,0.00021316,2]
[356812222,1743238150879,-500.0,0.00021316,2]
[356812223,1743238150903,-500.0,0.00021316,2]
[356812224,1743238150927,-500.0,0.00021316,2]
[356812225,1743238150950,-510.26675345,0.00021316,2]
[356812226,1743238150975,-500.0,0.00021316,2]
[356812227,1743238151005,-500.0,0.00021316,2]
[356812228,1743238151029,-500.0,0.00021316,2]
[356812229,1743238151052,-500.0,0.00021316,2]
[356812230,1743238151076,-500.0,0.00021316,2]
[356812231,1743238151100,-500.0,0.00021316,2]
[356812232,1743238151123,-500.0,0.00021316,2]
[356812233,1743238151150,-500.0,0.00021316,2]
[356812234,1743238151173,-500.0,0.00021316,2]
[356812235,1743238151196,-500.0,0.00021316,2]
[356812236,1743238151220,-500.0,0.00021316,2]
[356812237,1743238151244,-500.0,0.00021316,2]
[356812238,1743238151267,-500.0,0.00021316,2]
[356812239,1743238151291,-500.0,0.00021316,2]
[356812240,1743238151315,-500.0,0.00021316,2]
[356812241,1743238151339,-500.0,0.00021316,2]
[356812242,1743238151363,-500.0,0.00021316,2]
[356812243,1743238151386,-500.0,0.00021316,2]
[356812244,1743238151411,-500.0,0.00021316,2]
[356812245,1743238151435,-500.0,0.00021316,2]
[356812246,1743238151459,-500.0,0.00021316,2]
[356812247,1743238151482,-650.0,0.00021316,2]
[356812248,1743238151506,-500.0,0.00021316,2]
[356812249,1743238151528,-500.0,0.00021316,2]
[356812250,1743238151551,-500.0,0.00021316,2]
[356812251,1743238151575,-500.0,0.00021316,2]
[356812252,1743238151599,-500.0,0.00021316,2]
[356812253,1743238151623,-500.0,0.00021316,2]
[356812254,1743238151646,-322.28902182,0.00021316,2]
[356812255,1743238152187,-177.71097818,0.00021316,2]
[356812256,1743238152211,-500.0,0.00021316,2]
[356812257,1743238152233,-336.29558607,0.00021316,2]
[356812258,1743238161095,-163.70441393,0.00021316,2]
[356812259,1743238161121,-500.0,0.00021316,2]
[356812260,1743238161147,-500.0,0.00021316,2]
[356812261,1743238161171,-500.0,0.00021316,2]
[356812262,1743238161193,-500.0,0.00021317,2]
[356812263,1743238161215,-180.94547453,0.00021317,2]
[356812264,1743238161236,-153.52349492,0.00021317,2]
[356812265,1743238161258,-500.0,0.00021317,2]
[356812266,1743238161280,-500.0,0.00021317,2]
[356812267,1743238161301,-349.0239132,0.00021317,2]
[356812268,1743238161322,-36348.17088773,0.00021318,2]
[356812269,1743238169098,-27632.71558667,0.00021318,2]
[356812270,1743238169120,-10000.0,0.00021372,2]
[356812271,1743238169142,-500.0,0.000214,2]
[356812272,1743238169164,-500.0,0.000214,2]
[356812273,1743238169185,-500.0,0.000214,2]
[356812274,1743238169206,-505.47512376,0.000214,2]
[356812275,1743238169228,-408.69713888,0.00021469,2]
[356812276,1743238169250,-2197.2561221,0.00021569,2]
[356812277,1743238169271,-223.729171,0.00021622,2]
[356812278,1743238169293,-2856.080616,0.00021669,2]
[356812279,1743238169314,-161.0,0.00022,2]
[356812280,1743238169335,-1337.3171554,0.00022108,2]
[356812281,1743238169355,-408.69713884,0.00022202,2]
[356812282,1743238169377,-381.06473971,0.00022395,2]
[356812283,1743238169399,-565.02,0.00022489,3]
[356812284,1743238169419,-488.39045353,0.00022499,2]
[356812285,1743238169445,-198.92664809,0.00022499,2]
[356812286,1743238169466,-160.03,0.00022499,2]
[356812287,1743238169488,-33895.6642756,0.00022499,2]
[356812323,1743238232874,-1014.697662,0.00021002,2]
[356812324,1743238232883,-500.0,0.000214,2]
[356812325,1743238232893,-600.90452438,0.000214,2]
[356812326,1743238232902,-159.96638894,0.000214,2]
[356812327,1743238232911,-504.33041906,0.000214,2]
[356812328,1743238232921,-500.0,0.000214,2]
[356812329,1743238232930,-504.25855724,0.000214,2]
[356812330,1743238232940,-500.0,0.000214,2]
[356812331,1743238232949,-500.0,0.000214,2]
[356812332,1743238232958,-2576.84044574,0.000227,2]
[356812333,1743238232968,-300.0,0.00022705,2]
[356812334,1743238232978,-2601.62157893,0.00022706,2]
[356812335,1743238232994,-4307.80664977,0.00022706,2]
[356812336,1743238233004,-500.0,0.00022769,2]
[356812337,1743238233014,-500.0,0.00022769,2]
[356812338,1743238233024,-500.0,0.00022769,2]
[356812339,1743238233034,-500.0,0.00022769,2]
[356812340,1743238233043,-500.0,0.00022769,2]
[356812341,1743238233053,-166.02667535,0.00022769,2]
[356812342,1743238233063,-163.37181712,0.00022769,2]
[356812343,1743238233073,-500.0,0.00022769,2]
[356812344,1743238233082,-500.0,0.00022769,2]
[356812345,1743238233092,-500.0,0.00022769,2]
[356812346,1743238233101,-20495.63993174,0.0002277,2]
[356812354,1743238233254,-500.0,0.00022769,2]
[356812356,1743238233264,-500.0,0.00022769,2]
[356812358,1743238233274,-500.0,0.00022769,2]
[356812360,1743238233284,-4404.36006826,0.0002277,2]
[356812362,1743238233294,-500.0,0.000228,2]
[356812364,1743238233304,-408.69713884,0.00022935,2]
[356812366,1743238233314,-5000.0,0.00022973,2]
[356812368,1743238233324,-533.0047855,0.0002319,2]
[356812370,1743238233334,-150.0,0.00023424,2]
[356812372,1743238233345,-2576.84044567,0.00023474,2]
[356812374,1743238233354,-150.0,0.00023618,2]
[356812376,1743238233364,-1710.30675073,0.00023667,2]
[356812378,1743238233373,-408.69713884,0.00023667,2]
[356812380,1743238233383,-500.0,0.00023781,2]
[356812381,1743238233393,-1449.5502556,0.00023917,2]
[356812382,1743238233402,-6607.60158632,0.0002399,2]
[356812383,1743238233412,-1009.14376325,0.00024,2]
[356812384,1743238233422,-150.0,0.00024073,2]
[356812385,1743238233432,-500.0,0.00024099,2]
[356812386,1743238233442,-294.31673924,0.00024099,2]
[356812387,1743238233452,-500.0,0.00024099,2]
[356812388,1743238233462,-3417.77192063,0.000241,5]
[356812389,1743238233473,-3417.77192057,0.000241,5]
[356812390,1743238233482,-3417.77192057,0.000241,5]
[356812391,1743238233492,-3417.77192057,0.000241,5]
[356812392,1743238233502,-3417.77192057,0.000241,5]
[356812393,1743238233512,-3417.77192057,0.000241,5]
[356812394,1743238233522,-3417.77192057,0.000241,5]
[356812395,1743238233532,-3417.77192057,0.000241,5]
[356812396,1743238233542,-3417.77192057,0.00024107,5]
[356812397,1743238233551,-2576.84044567,0.00024248,2]
[356812398,1743238233561,-239.48223256,0.00024313,2]
[356812399,1743238233571,-542.0,0.00024359,2]
[356812400,1743238233580,-152.921,0.00024359,2]
[356812401,1743238233589,-1915.0,0.00024359,2]
[356812402,1743238233599,-2261.0,0.00024359,2]
[356812403,1743238233608,-3417.77192057,0.00024383,5]
[356812404,1743238233620,-408.69713884,0.000244,2]
[356812405,1743238233630,-1219.57676563,0.000244,2]
[356812406,1743238233640,-68514.04024301,0.00024456,2]
[356812436,1743238238532,-150.0,0.00024359,2]
[356812438,1743238238542,-460.02460827,0.00024456,2]
[356812441,1743238238553,-2562.4022144,0.00024456,2]
[356812481,1743238238919,-536.9764501,0.00024456,2]
[356812484,1743238238934,-462.83688589,0.00024456,2]
[356812486,1743238238945,-32342.58274875,0.00024456,2]
[356812489,1743238238961,-61318.18213097,0.00024456,2]
[356812676,1743238241060,-853.5639978,0.00024456,2]
[356812683,1743238241112,-41588.3501056,0.00024456,2]
[356812689,1743238241166,-4144.01674424,0.00024456,2]
[356812969,1743238243839,-401.0,0.00024359,2]
[356812972,1743238243849,-39946.37440562,0.00024456,2]
[356813308,1743238247178,-322.7826615,0.00024456,2]
[356813502,1743238634315,174.833854,0.00013699,2]
[356813503,1743238815079,-180.192473,0.00021,2]
[356813504,1743238903111,-180.192473,0.00021,2]
[356813505,1743238925024,-300.0,0.00021,2]
[356813506,1743239022002,-152.27921964,0.00021,2]
[356813507,1743239022032,-178.26994734,0.00021738,2]
[356813508,1743239045148,-278.25369454,0.00021738,2]
[356813509,1743239076661,-153.92089248,0.00021547,2]
[356813510,1743239104773,-151.0,0.00021547,2]
[356813511,1743239203465,-152.86131706,0.00021316,2]
[356813512,1743239226145,-150.07816225,0.00021316,2]
[356813513,1743239226167,-314.9236411,0.00021359,2]
[356813514,1743239226188,-303.88196902,0.00021547,2]
[356813515,1743239226208,-151.38890589,0.00021695,2]
[356813516,1743239226229,-267.25583612,0.00021738,2]
[356813517,1743239226250,-156.0,0.00022,2]
[356813518,1743239226270,-303.49339214,0.0002205,2]
[356813519,1743239237129,-178.88981614,0.0002205,2]
[356813520,1743239237157,-300.0,0.0002228,2]
[356813521,1743239237180,-618.97595892,0.00022281,2]
[356813522,1743239240082,-156.0,0.00022,2]
[356813523,1743239240104,-1183.07616433,0.00022281,2]
[356813524,1743239253095,-1008.80814969,0.00022281,2]
[356813525,1743239355106,-7044.14910452,0.00022281,2]
[356813642,1743239432822,-112.08979441,0.00022281,2]
[356813674,1743239437909,-32.90082813,0.00022281,2]
[356813675,1743239437919,-890.64902898,0.00022691,2]
[356813676,1743239437929,-300.0,0.00022788,2]
[356813677,1743239437938,-500.0,0.00022789,2]
[356813678,1743239437947,-500.0,0.00022789,2]
[356813679,1743239437956,-556.28402256,0.00022789,2]
[356813680,1743239437966,-500.0,0.00022789,2]
[356813681,1743239437975,-500.0,0.00022789,2]
[356813682,1743239437985,-214.11043568,0.00022789,2]
[356813683,1743239437994,-500.0,0.00022789,2]
[356813684,1743239438003,-500.0,0.00022789,2]
[356813685,1743239438012,-500.0,0.00022789,2]
[356813686,1743239438022,-500.0,0.00022789,2]
[356813687,1743239438030,-500.0,0.00022789,2]
[356813688,1743239438039,-500.0,0.00022789,2]
[356813689,1743239438048,-500.0,0.00022789,2]
[356813690,1743239438057,-500.0,0.00022789,2]
[356813692,1743239438068,-500.0,0.00022789,2]
[356813694,1743239438079,-500.0,0.00022789,2]
[356813696,1743239438088,-500.0,0.00022789,2]
[356813698,1743239438097,-500.0,0.00022789,2]
[356813700,1743239438107,-500.0,0.00022789,2]
[356813702,1743239438116,-500.0,0.00022789,2]
[356813703,1743239438125,-500.0,0.00022789,2]
[356813704,1743239438134,-500.0,0.00022789,2]
[356813705,1743239438144,-500.0,0.00022789,2]
[356813706,1743239438154,-500.0,0.00022789,2]
[356813707,1743239438163,-500.0,0.00022789,2]
[356813708,1743239438173,-500.0,0.00022789,2]
[356813709,1743239438182,-500.0,0.00022789,2]
[356813710,1743239438191,-500.0,0.00022789,2]
[356813711,1743239438200,-500.0,0.00022789,2]
[356813712,1743239438209,-500.0,0.00022789,2]
[356813713,1743239438218,-500.0,0.00022789,2]
[356813714,1743239438227,-500.0,0.00022789,2]
[356813715,1743239438236,-500.0,0.00022789,2]
[356813716,1743239438245,-500.0,0.00022789,2]
[356813717,1743239438254,-500.0,0.00022789,2]
[356813718,1743239438263,-476.41844036,0.00022789,2]
[356813719,1743239438660,-23.58155964,0.00022789,2]
[356813720,1743239438670,-98.40352647,0.00022789,2]
[356813721,1743239438681,-401.59647353,0.00022789,2]
[356813722,1743239438691,-500.0,0.00022789,2]
[356813723,1743239438700,-500.0,0.00022789,2]
[356813724,1743239438711,-500.0,0.00022789,2]
[356813725,1743239438723,-500.0,0.00022789,2]
[356813726,1743239438734,-500.0,0.00022789,2]
[356813727,1743239438743,-500.0,0.00022789,2]
[356813728,1743239438753,-500.0,0.00022789,2]
[356813729,1743239438763,-500.0,0.00022789,2]
[356813730,1743239438774,-500.0,0.00022789,2]
[356813731,1743239438783,-500.0,0.00022789,2]
[356813732,1743239438792,-500.0,0.00022789,2]
[356813733,1743239438801,-500.0,0.00022789,2]
[356813734,1743239438811,-500.0,0.00022789,2]
[356813735,1743239438820,-500.0,0.00022789,2]
[356813736,1743239438828,-500.0,0.00022789,2]
[356813737,1743239438837,-500.0,0.00022789,2]
[356813738,1743239438846,-190.45671507,0.00022789,2]
[356813739,1743239438855,-500.0,0.00022789,2]
[356813740,1743239438863,-500.0,0.00022789,2]
[356813741,1743239438872,-500.0,0.00022789,2]
[356813742,1743239438881,-500.0,0.00022789,2]
[356813743,1743239438890,-500.0,0.00022789,2]
[356813744,1743239438898,-500.0,0.00022789,2]
[356813745,1743239438907,-515.16641218,0.00022789,2]
[356813746,1743239438916,-500.0,0.00022789,2]
[356813747,1743239438925,-18744.58298134,0.00022789,2]
[356813748,1743239438936,-2692.7137372,0.00022789,2]
[356813761,1743239440184,-949.75236137,0.00022789,2]
[356813762,1743239440294,-27612.95092009,0.00022789,2]
[356813763,1743239440304,-208.29197191,0.0002279,2]
[356813764,1743239440313,-258.05551274,0.0002279,2]
[356813765,1743239440323,-500.0,0.0002279,2]
[356813766,1743239440332,-286.738752,0.0002279,2]
[356813767,1743239440341,-500.0,0.0002279,2]
[356813769,1743239440351,-500.0,0.0002279,2]
[356813771,1743239440360,-250.0,0.00022791,2]
[356813772,1743239440369,-500.0,0.00022791,2]
[356813773,1743239440378,-500.0,0.00022791,2]
[356813774,1743239440387,-500.0,0.00022791,2]
[356813775,1743239440396,-890.64902895,0.00022973,2]
[356813776,1743239440406,-791.0,0.0002298,3]
[356813777,1743239440415,-17843.63444008,0.0002299,2]
[356813778,1743239440424,-465.86916041,0.00023153,2]
[356813779,1743239440433,-890.64902895,0.00023254,2]
[356813780,1743239440442,-24900.0,0.00023441,2]
[356813781,1743239440451,-502.25713568,0.0002346,2]
[356813782,1743239440460,-500.0,0.0002346,2]
[356813783,1743239440469,-500.0,0.0002346,2]
[356813784,1743239440478,-500.0,0.0002346,2]
[356813785,1743239440487,-500.0,0.0002346,2]
[356813786,1743239440496,-890.64902895,0.00023536,2]
[356813787,1743239440505,-198.92664809,0.00023817,2]
[356813788,1743239440514,-890.64902895,0.00023817,2]
[356813789,1743239440523,-1458.83435027,0.00023817,2]
[356813790,1743239440533,-7585.02056809,0.0002389,3]
[356813791,1743239440542,-16515.48217425,0.0002389,2]
[356813916,1743239446206,-803.07277939,0.0002389,2]
[356813917,1743239446230,-324.89803351,0.0002389,2]
[356813918,1743239526566,-175.159423,0.00022181,2]
[356813919,1743239777703,180.010983,0.00013699,2]
[356813921,1743240426136,-162.594042,0.00020167,2]
[356813922,1743240426158,-131.49047914,0.00020277,2]
[356813923,1743240429109,-966.69396786,0.00020277,2]
[356813924,1743240429130,-162.594042,0.00020328,2]
[356813925,1743240429151,-199.85151924,0.00020473,2]
[356813926,1743240499130,1181.33122753,0.000125,2]
[356813928,1743240521770,15342.0,0.000231,120]
[356813929,1743240547105,-300.0,0.00020198,2]
[356813930,1743240547127,-376.68318699,0.00020199,2]
[356813931,1743240547151,-548.97860361,0.00020199,2]
[356813932,1743240547173,-500.0,0.00020199,2]
[356813933,1743240547197,-500.0,0.00020199,2]
[356813934,1743240547222,-500.0,0.00020199,2]
[356813935,1743240547244,-500.0,0.00020199,2]
[356813936,1743240547269,-500.0,0.00020199,2]
[356813937,1743240547290,-500.0,0.00020199,2]
[356813938,1743240547314,-500.0,0.00020199,2]
[356813939,1743240547338,-500.0,0.00020199,2]
[356813940,1743240547360,-158.01723506,0.00020199,2]
[356813941,1743240547398,-500.0,0.00020199,2]
[356813942,1743240547426,-500.0,0.00020199,2]
[356813943,1743240547451,-500.0,0.00020199,2]
[356813944,1743240547476,-500.0,0.00020199,2]
[356813945,1743240547503,-500.0,0.00020199,2]
[356813946,1743240547527,-500.0,0.00020199,2]
[356813947,1743240547551,-500.0,0.00020199,2]
[356813948,1743240547575,-500.0,0.00020199,2]
[356813949,1743240547601,-500.0,0.00020199,2]
[356813950,1743240547625,-500.0,0.00020199,2]
[356813951,1743240547650,-500.0,0.00020199,2]
[356813952,1743240547674,-500.0,0.00020199,2]
[356813953,1743240547697,-500.0,0.00020199,2]
[356813954,1743240547721,-500.0,0.00020199,2]
[356813955,1743240547744,-500.0,0.00020199,2]
[356813956,1743240547768,-500.0,0.00020199,2]
[356813957,1743240547796,-500.0,0.00020199,2]
[356813958,1743240547820,-500.0,0.00020199,2]
[356813959,1743240547844,-500.0,0.00020199,2]
[356813960,1743240547868,-500.0,0.00020199,2]
[356813961,1743240547891,-500.0,0.00020199,2]
[356813962,1743240547913,-500.0,0.00020199,2]
[356813963,1743240547936,-500.0,0.00020199,2]
[356813964,1743240547959,-500.0,0.00020199,2]
[356813965,1743240547981,-500.0,0.00020199,2]
[356813966,1743240548008,-500.0,0.00020199,2]
[356813967,1743240548031,-500.0,0.00020199,2]
[356813968,1743240548056,-500.0,0.00020199,2]
[356813969,1743240548081,-500.0,0.00020199,2]
[356813970,1743240548106,-500.0,0.00020199,2]
[356813971,1743240548130,-500.0,0.00020199,2]
[356813972,1743240548154,-500.0,0.00020199,2]
[356813973,1743240548179,-500.0,0.00020199,2]
[356813974,1743240548204,-500.0,0.00020199,2]
[356813975,1743240548228,-500.0,0.00020199,2]
[356813976,1743240548252,-500.0,0.00020199,2]
[356813977,1743240548276,-500.0,0.00020199,2]
[356813978,1743240548299,-500.0,0.00020199,2]
[356813979,1743240548322,-500.0,0.00020199,2]
[356813980,1743240548345,-500.0,0.00020199,2]
[356813981,1743240548370,-291.64814813,0.00020199,2]
[356813982,1743240548394,-500.0,0.00020199,2]
[356813983,1743240548418,-500.0,0.00020199,2]
[356813984,1743240548441,-500.0,0.00020199,2]
[356813985,1743240548464,-500.0,0.00020199,2]
[356813986,1743240548486,-2621.19076758,0.00020199,2]
[356813987,1743240548510,-2621.19076758,0.00020199,2]
[356813988,1743240548534,-2621.19076758,0.00020199,2]
[356813989,1743240548557,-2621.19076758,0.00020199,2]
[356813990,1743240548580,-2621.19076758,0.00020199,2]
[356813991,1743240548603,-2621.19076758,0.00020199,2]
[356813992,1743240548628,-2621.19076758,0.00020199,2]
[356813993,1743240548651,-2621.19076758,0.00020199,2]
[356813994,1743240548674,-2621.19076758,0.00020199,2]
[356813995,1743240548698,-2621.19076758,0.00020199,2]
[356813996,1743240548722,-2621.19076758,0.00020199,2]
[356813997,1743240548747,-2621.19076758,0.00020199,2]
[356813998,1743240548770,-2621.19076758,0.00020199,2]
[356813999,1743240548793,-2621.19076758,0.00020199,2]
[356814000,1743240548816,-2621.19076758,0.00020199,2]
[356814001,1743240548839,-2621.19076758,0.00020199,2]
[356814002,1743240548863,-2621.19076758,0.00020199,2]
[356814003,1743240548887,-2621.19076758,0.00020199,2]